bitfinex/quotes_BTCUSD_20241128
["timestamp","ask_amount","ask_price","bid_price","bid_amount"]
[1732810853079,0.18891435,95337.0,95336.0,0.014]
[1732810853520,0.18791435,95337.0,95336.0,0.005]
[1732810853753,0.104896,95332.0,95331.0,0.01277203]
[1732810853967,0.104896,95332.0,95331.0,0.01933315]
[1732810854197,0.104896,95332.0,95331.0,0.00656112]
[1732810854859,0.209793,95332.0,95323.0,0.01304156]
[1732810855119,0.209793,95332.0,95324.0,0.0065613]
[1732810855346,0.209793,95332.0,95323.0,0.11794756]
[1732810855347,0.104902,95327.0,95325.0,0.0065613]
[1732810855560,0.08115897,95337.0,95320.0,0.001722]
[1732810855779,0.104896,95332.0,95331.0,0.001]
[1732810856032,0.229996,95332.0,95331.0,0.001]
[1732810856723,0.229996,95332.0,95331.0,0.003]
[1732810856960,0.1251,95332.0,95320.0,0.211539]
[1732810857177,0.1251,95332.0,95320.0,0.001722]
[1732810857178,0.334893,95332.0,95320.0,0.001722]
[1732810857410,0.104901,95328.0,95322.0,0.104906]
[1732810858123,0.104901,95328.0,95323.0,0.104905]
[1732810858338,0.1049,95329.0,95323.0,0.104905]
[1732810858549,0.104902,95327.0,95323.0,0.104905]
[1732810859889,0.209797,95330.0,95323.0,0.104905]
[1732810860122,0.334893,95332.0,95321.0,0.209817]
[1732810860367,0.209797,95330.0,95322.0,0.003]
[1732810860601,0.104901,95328.0,95324.0,0.104904]
[1732810860823,0.104901,95328.0,95323.0,0.001]
[1732810860824,0.00065897,95337.0,95323.0,0.004]
[1732810861057,0.00065897,95337.0,95336.0,0.104892]
[1732810861531,0.00065897,95337.0,95336.0,0.11145275]
[1732810862693,0.00065897,95337.0,95336.0,0.104892]
[1732810863183,0.00165897,95337.0,95336.0,0.1066158]
[1732810863851,0.00065897,95337.0,95336.0,0.1106158]
[1732810864291,0.00065897,95337.0,95336.0,0.1126158]
[1732810865196,0.00065897,95337.0,95336.0,0.12559335]
[1732810866318,0.00065897,95337.0,95336.0,0.02070135]
[1732810866754,0.00065897,95337.0,95336.0,0.12559335]
[1732810867000,0.00065897,95337.0,95336.0,0.02070135]
[1732810867235,0.00065897,95337.0,95336.0,0.12559335]
[1732810869027,0.00065897,95337.0,95336.0,0.02070135]
[1732810869503,0.20921435,95337.0,95336.0,0.0077238]
[1732810870380,0.25441435,95337.0,95336.0,0.0077238]
[1732810870622,0.25441435,95337.0,95336.0,0.0017238]
[1732810870623,0.35539518,95337.0,95336.0,0.0017238]
[1732810870903,0.35739518,95337.0,95336.0,0.0017238]
[1732810871127,0.36139518,95337.0,95336.0,0.0017238]
[1732810871346,0.35939518,95337.0,95336.0,0.0017238]
[1732810871569,0.36539518,95337.0,95336.0,0.0027238]
[1732810872903,0.35539518,95337.0,95336.0,0.0017238]
[1732810873173,0.35739518,95337.0,95336.0,0.0017238]
[1732810873403,0.36539518,95337.0,95336.0,0.0027238]
[1732810873622,0.35539518,95337.0,95336.0,0.0017238]
[1732810873841,0.35739518,95337.0,95336.0,0.0017238]
[1732810874083,0.36339518,95337.0,95336.0,0.0027238]
[1732810874305,0.36339518,95337.0,95336.0,0.0017238]
[1732810874306,0.36139518,95337.0,95336.0,0.0017238]
[1732810874787,0.37039518,95337.0,95336.0,0.0027238]
[1732810876138,0.35539518,95337.0,95336.0,0.0017238]
[1732810876381,0.36539518,95337.0,95336.0,0.0027238]
[1732810876619,0.35739518,95337.0,95336.0,0.0017238]
[1732810876844,0.35539518,95337.0,95336.0,0.0017238]
[1732810877060,0.36239518,95337.0,95336.0,0.0027238]
[1732810877293,0.36439518,95337.0,95336.0,0.0027238]
[1732810877725,0.35539518,95337.0,95336.0,0.0017238]
[1732810878162,0.35539518,95337.0,95336.0,0.0027238]
[1732810878163,0.36439518,95337.0,95336.0,0.0027238]
[1732810881012,0.51439518,95337.0,95336.0,0.0027238]
[1732810882387,0.51239518,95337.0,95336.0,0.0027238]
[1732810882613,0.51239518,95337.0,95336.0,0.0017238]
[1732810882834,0.51139518,95337.0,95336.0,0.0017238]
[1732810883052,0.52039518,95337.0,95336.0,0.0027238]
[1732810883311,0.53039518,95337.0,95336.0,0.0027238]
[1732810883762,0.52039518,95337.0,95336.0,0.0027238]
[1732810884214,0.53039518,95337.0,95336.0,0.0027238]
[1732810888007,0.52039518,95337.0,95336.0,0.0027238]
[1732810888220,0.49739518,95337.0,95336.0,0.0027238]
[1732810889540,0.52039518,95337.0,95336.0,0.0027238]
[1732810890507,0.54039518,95337.0,95336.0,0.0027238]
[1732810891011,0.53039518,95337.0,95336.0,0.0027238]
[1732810891251,0.54039518,95337.0,95336.0,0.0027238]
[1732810892951,0.52039518,95337.0,95336.0,0.0027238]
[1732810910581,0.55242544,95337.0,95336.0,0.0027238]
[1732810910818,0.52039518,95337.0,95336.0,0.0027238]
[1732810911375,0.52039518,95337.0,95336.0,8e-07]
[1732810911376,0.59107787,95337.0,95336.0,8e-07]
[1732810911573,0.400918,95312.0,95311.0,0.001722]
[1732810911818,0.400918,95312.0,95293.0,0.001722]
[1732810911819,0.206432,95299.0,95293.0,0.001722]
[1732810912063,0.46114159,95299.0,95293.0,0.001722]
[1732810912274,0.45927721,95299.0,95293.0,0.001722]
[1732810913475,0.46527721,95299.0,95293.0,0.001722]
[1732810914653,0.46827721,95299.0,95293.0,0.001722]
[1732810915091,0.47327721,95299.0,95293.0,0.001722]
[1732810915819,0.48591811,95299.0,95293.0,0.001722]
[1732810916043,0.40741811,95299.0,95293.0,0.001722]
[1732810916296,0.118932,95299.0,95293.0,0.001722]
[1732810916563,0.12079638,95299.0,95293.0,0.001722]
[1732810917549,0.14379638,95299.0,95293.0,0.001722]
[1732810917841,0.014,95299.0,95298.0,0.133122]
[1732810918303,0.014,95299.0,95298.0,0.238055]
[1732810918509,0.209847,95308.0,95298.0,0.133122]
[1732810918759,0.014,95299.0,95298.0,0.238055]
[1732810918993,0.014,95299.0,95298.0,0.133122]
[1732810919190,0.10493,95301.0,95298.0,0.133122]
[1732810919719,0.20984,95311.0,95298.0,0.135122]
[1732810919961,0.104915,95315.0,95310.0,0.104919]
[1732810920213,0.29004197,95337.0,95300.0,0.419726]
[1732810920214,0.209808,95326.0,95300.0,0.419726]
[1732810920445,0.10491,95320.0,95302.0,0.09408512]
[1732810920695,0.10491,95319.0,95315.0,0.104915]
[1732810920938,0.00186438,95318.0,95302.0,0.09408512]
[1732810921178,0.104919,95311.0,95303.0,0.21769659]
[1732810921424,0.15,95332.0,95304.0,0.00784059]
[1732810921680,0.104921,95310.0,95305.0,0.11276559]
[1732810921891,0.209837,95312.0,95304.0,0.209854]
[1732810921892,0.10492,95311.0,95306.0,0.104924]
[1732810922110,0.104921,95310.0,95304.0,0.31478]
[1732810922327,0.104921,95310.0,95306.0,0.104924]
[1732810922572,0.002,95311.0,95308.0,0.104922]
[1732810922792,0.104919,95312.0,95308.0,0.104922]
[1732810923055,0.104917,95314.0,95304.0,0.001]
[1732810923294,0.002,95311.0,95305.0,0.00784059]
[1732810923527,0.104922,95309.0,95305.0,0.00784059]
[1732810923748,0.002,95311.0,95304.0,0.001]
[1732810923996,0.002,95311.0,95305.0,0.00784261]
[1732810924237,0.002,95311.0,95300.0,0.10284521]
[1732810924481,0.002,95311.0,95300.0,0.1970005]
[1732810924717,0.105921,95310.0,95302.0,0.209859]
[1732810924959,0.001,95310.0,95301.0,0.09415529]
[1732810925200,0.001,95310.0,95309.0,0.104921]
[1732810925675,0.002,95311.0,95310.0,0.10492]
[1732810925908,0.524497,95329.0,95316.0,0.104913]
[1732810926128,0.001,95311.0,95310.0,0.10492]
[1732810927729,0.104908,95322.0,95306.0,0.20985]
[1732810927730,0.104908,95322.0,95317.0,0.104912]
[1732810928437,0.00186438,95324.0,95311.0,0.209837]
[1732810928678,0.104908,95322.0,95310.0,0.001]
[1732810928883,0.10491,95320.0,95310.0,0.004]
[1732810929151,0.10491,95320.0,95315.0,0.104915]
[1732810929404,0.21167638,95323.0,95311.0,0.209839]
[1732810929405,0.21167638,95323.0,95316.0,0.104913]
[1732810929654,0.21167638,95323.0,95317.0,0.001]
[1732810929655,0.104911,95318.0,95317.0,0.001]
[1732810929903,0.104911,95318.0,95314.0,0.104916]
[1732810930120,0.02290989,95337.0,95306.0,0.0773]
[1732810930361,0.104915,95316.0,95311.0,0.104919]
[1732810930594,0.104915,95316.0,95312.0,0.104918]
[1732810930847,0.104915,95316.0,95308.0,0.209845]
[1732810931075,0.01181468,95332.0,95308.0,0.10284521]
[1732810931330,0.209805,95327.0,95311.0,0.104918]
[1732810931611,0.209805,95327.0,95306.0,0.0773]
[1732810931612,0.023,95325.0,95299.0,0.09416686]
[1732810931855,0.248,95331.0,95311.0,0.002]
[1732810931856,0.127918,95312.0,95311.0,0.002]
[1732810932093,0.127918,95312.0,95298.0,0.001722]
[1732810932094,0.104932,95299.0,95298.0,0.001722]
[1732810932340,0.00186438,95311.0,95298.0,0.130422]
[1732810932602,0.104929,95303.0,95298.0,0.130422]
[1732810932868,0.15,95323.0,95307.0,0.104923]
[1732810932869,0.0099944,95323.0,95307.0,0.104923]
[1732810933151,0.0099944,95323.0,95298.0,0.23326721]
[1732810933152,0.0099944,95323.0,95313.0,0.209834]
[1732810933357,0.104916,95314.0,95309.0,0.104921]
[1732810933611,0.104916,95314.0,95308.0,0.10284521]
[1732810933612,0.209812,95323.0,95313.0,0.104916]
[1732810933864,0.104905,95324.0,95313.0,0.104916]
[1732810934107,0.104912,95318.0,95313.0,0.104916]
[1732810934339,0.104912,95318.0,95308.0,0.10284521]
[1732810934340,0.001,95312.0,95308.0,0.11556525]
[1732810934808,0.209832,95315.0,95309.0,0.10492]
[1732810935033,0.104918,95313.0,95308.0,0.22048725]
[1732810935267,0.0008621,95333.0,95310.0,0.10492]
[1732810935268,0.0098996,95328.0,95310.0,0.10492]
[1732810935497,0.209806,95326.0,95313.0,0.001]
[1732810935693,0.104913,95317.0,95309.0,0.209843]
[1732810935904,0.001,95312.0,95308.0,0.11956525]
[1732810936122,0.001,95312.0,95309.0,0.209843]
[1732810936365,0.001,95312.0,95308.0,0.11856525]
[1732810936366,0.001,95312.0,95308.0,0.01572004]
[1732810936624,0.001,95312.0,95310.0,0.10492]
[1732810936838,0.104921,95309.0,95308.0,0.11856525]
[1732810937077,0.104921,95309.0,95308.0,0.11556525]
[1732810937300,0.209839,95311.0,95308.0,0.11556525]
[1732810937301,0.10492,95311.0,95308.0,0.11556525]
[1732810937540,0.001,95312.0,95308.0,0.11556525]
[1732810937990,0.001,95312.0,95309.0,0.104921]
[1732810938269,0.10553659,95312.0,95308.0,0.11756525]
[1732810938491,0.001,95309.0,95308.0,0.01572004]
[1732810938732,0.105921,95309.0,95308.0,0.01372004]
[1732810938949,0.105921,95309.0,95308.0,0.01272004]
[1732810939169,0.105921,95309.0,95308.0,0.004]
[1732810939399,0.00161859,95312.0,95308.0,0.003]
[1732810939893,0.106921,95309.0,95308.0,0.003]
[1732810940129,0.002,95309.0,95308.0,0.107922]
[1732810940376,0.002,95309.0,95308.0,0.104922]
[1732810940886,0.002,95309.0,95308.0,0.106922]
[1732810941118,0.00061859,95312.0,95308.0,0.002]
[1732810941334,0.00061859,95312.0,95309.0,0.104921]
[1732810942700,0.104921,95310.0,95309.0,0.001]
[1732810944264,0.00061859,95312.0,95300.0,0.11795515]
[1732810944487,0.104926,95305.0,95300.0,0.22080036]
[1732810944751,0.00061859,95312.0,95300.0,0.22080036]
[1732810944752,0.00061859,95312.0,95300.0,0.01302415]
[1732810944988,0.104926,95305.0,95300.0,0.11795515]
[1732810945938,0.104928,95303.0,95300.0,0.01402415]
[1732810946194,0.10493,95301.0,95300.0,0.001]
[1732810947113,0.10493,95301.0,95300.0,0.004]
[1732810947348,0.10493,95301.0,95300.0,0.003]
[1732810948049,0.10493,95301.0,95298.0,0.001722]
[1732810948050,0.104932,95299.0,95298.0,0.001722]
[1732810950004,0.127932,95299.0,95298.0,0.001722]
[1732810950266,0.419678,95311.0,95298.0,0.001722]
[1732810950518,0.001,95299.0,95298.0,0.106655]
[1732810950763,0.004,95299.0,95298.0,0.28500021]
[1732810950984,0.10639969,95312.0,95298.0,0.18006721]
[1732810951226,0.10639969,95312.0,95308.0,0.104922]
[1732810951227,0.00148069,95312.0,95308.0,0.104922]
[1732810951468,0.00148069,95312.0,95298.0,0.18006721]
[1732810951469,0.00148069,95312.0,95300.0,0.1524476]
[1732810951708,0.00148069,95312.0,95311.0,0.104919]
[1732810952202,0.00148069,95312.0,95311.0,0.20776421]
[1732810952447,0.0099399,95330.0,95329.0,0.104899]
[1732810952698,0.104893,95335.0,95330.0,0.104897]
[1732810952943,0.104893,95335.0,95313.0,0.09402471]
[1732810952944,0.210642,95338.0,95329.0,0.104898]
[1732810953184,0.210642,95338.0,95325.0,0.209807]
[1732810953437,0.210642,95338.0,95319.0,0.09402471]
[1732810953438,0.1057581,95333.0,95319.0,0.09402471]
[1732810953671,0.0008621,95333.0,95320.0,0.10284521]
[1732810953910,0.1057571,95333.0,95328.0,0.1049]
[1732810954138,0.1057571,95333.0,95325.0,0.209806]
[1732810954139,0.1057571,95333.0,95329.0,0.104899]
[1732810954359,0.1057571,95333.0,95332.0,0.104896]
[1732810954360,0.0008621,95333.0,95332.0,0.104896]
[1732810954812,0.0038621,95333.0,95332.0,0.104896]
[1732810955256,0.0008621,95333.0,95332.0,0.104896]
[1732810955479,0.0088621,95333.0,95332.0,0.104896]
[1732810955660,0.0038621,95333.0,95332.0,0.104896]
[1732810956175,0.0088621,95333.0,95332.0,0.104896]
[1732810956844,0.0058621,95333.0,95332.0,0.104896]
[1732810957072,0.0088621,95333.0,95332.0,0.104896]
[1732810957551,0.0058621,95333.0,95332.0,0.104896]
[1732810958019,0.0078621,95333.0,95332.0,0.104896]
[1732810958256,0.0028621,95333.0,95332.0,0.104896]
[1732810958474,0.0068621,95333.0,95332.0,0.104896]
[1732810959332,0.0028621,95333.0,95332.0,0.104896]
[1732810959577,0.0028621,95333.0,95332.0,0.1176669]
[1732810959830,0.0038621,95333.0,95332.0,0.1206669]
[1732810960058,0.0018621,95333.0,95332.0,0.1206669]
[1732810960275,0.0038621,95333.0,95332.0,0.1206669]
[1732810960924,0.0018621,95333.0,95332.0,0.1206669]
[1732810961173,0.0018621,95333.0,95332.0,0.003]
[1732810961395,0.0018621,95333.0,95332.0,0.006]
[1732810961396,0.1067571,95333.0,95332.0,0.006]
[1732810961645,0.0018621,95333.0,95332.0,0.006]
[1732810961861,0.1067571,95333.0,95332.0,0.006]
[1732810962595,0.1057571,95333.0,95332.0,0.003]
[1732810962809,0.1067571,95333.0,95332.0,0.003]
[1732810963031,0.1067571,95333.0,95330.0,0.01259551]
[1732810963508,0.1067571,95333.0,95332.0,0.004]
[1732810964027,0.0018621,95333.0,95332.0,0.108896]
[1732810964271,0.0018621,95333.0,95332.0,0.110896]
[1732810964968,0.0008621,95333.0,95332.0,0.106896]
[1732810965923,0.1057571,95333.0,95332.0,0.005]
[1732810966146,0.0008621,95333.0,95332.0,0.005]
[1732810966591,0.1057571,95333.0,95332.0,0.005]
[1732810967738,0.1831571,95333.0,95332.0,0.005]
[1732810968658,0.1831571,95333.0,95332.0,0.002]
[1732810969560,0.1831571,95333.0,95332.0,0.003]
[1732810969771,0.1831571,95333.0,95332.0,0.001]
[1732810969915,0.0782621,95333.0,95332.0,0.003]
[1732810970149,0.1831571,95333.0,95332.0,0.003]
[1732810970330,0.1831571,95333.0,95332.0,0.004]
[1732810970535,0.20802148,95333.0,95332.0,0.004]
[1732810970751,0.25662148,95333.0,95332.0,0.004]
[1732810970968,0.2547571,95333.0,95332.0,0.004]
[1732810972078,0.104916,95315.0,95312.0,0.01308368]
[1732810972299,0.00186438,95330.0,95309.0,0.0017242]
[1732810972555,0.209795,95331.0,95319.0,0.20982]
[1732810972803,0.104903,95326.0,95321.0,0.104907]
[1732810973037,0.104904,95325.0,95321.0,0.104907]
[1732810973257,0.209797,95330.0,95319.0,0.10491]
[1732810973258,0.104905,95324.0,95319.0,0.10491]
[1732810973483,0.1012621,95333.0,95317.0,0.104912]
[1732810973484,0.104907,95323.0,95317.0,0.104912]
[1732810974165,0.209802,95328.0,95310.0,0.10284521]
[1732810974406,0.209806,95326.0,95310.0,0.10284521]
[1732810974619,0.104911,95319.0,95313.0,0.104916]
[1732810974852,0.00186438,95320.0,95309.0,0.01477056]
[1732810975083,0.10492,95310.0,95309.0,0.01477056]
[1732810975539,0.0758,95314.0,95309.0,0.01477056]
[1732810975774,0.104918,95312.0,95309.0,0.01477056]
[1732810975998,0.104918,95313.0,95309.0,0.01477056]
[1732810976220,0.180716,95314.0,95309.0,0.11969156]
[1732810976495,0.180716,95314.0,95309.0,0.01477056]
[1732810976496,0.10373585,95312.0,95309.0,0.01477056]
[1732810976743,0.0758,95314.0,95309.0,0.01477056]
[1732810976977,0.10492,95310.0,95309.0,0.01777056]
[1732810977178,0.10592,95310.0,95309.0,0.01977056]
[1732810977408,0.104918,95312.0,95309.0,0.01677056]
[1732810977643,0.104917,95313.0,95309.0,0.01777056]
[1732810977857,0.104919,95312.0,95309.0,0.01977056]
[1732810978087,0.0758,95314.0,95309.0,0.0037242]
[1732810978088,0.10492,95310.0,95309.0,0.0037242]
[1732810978976,0.10592,95310.0,95309.0,0.0047242]
[1732810979407,0.10592,95310.0,95309.0,0.0027242]
[1732810979643,0.001,95310.0,95309.0,0.0047242]
[1732810979853,0.10592,95310.0,95309.0,0.0047242]
[1732810980308,0.10592,95310.0,95309.0,0.0027242]
[1732810980544,0.10592,95310.0,95309.0,0.0057242]
[1732810982513,0.001,95310.0,95309.0,0.1106452]
[1732810982890,0.001,95310.0,95309.0,0.0057242]
[1732810983101,0.10592,95310.0,95309.0,0.0057242]
[1732810983510,0.001,95310.0,95309.0,0.0057242]
[1732810984319,0.10592,95310.0,95309.0,0.0057242]
[1732810984723,0.20792,95310.0,95309.0,0.0057242]
[1732810985667,0.20792,95310.0,95309.0,0.0027242]
[1732810985899,0.20892,95310.0,95309.0,0.0027242]
[1732810986560,0.20792,95310.0,95309.0,0.0027242]
[1732810986820,0.20792,95310.0,95309.0,0.0017242]
[1732810987052,0.21092,95310.0,95309.0,0.0017242]
[1732810987512,0.20792,95310.0,95309.0,0.0017242]
[1732810987733,0.21092,95310.0,95309.0,0.0017242]
[1732810988819,0.18792,95310.0,95309.0,0.0017242]
[1732810989062,0.004,95310.0,95309.0,0.0017242]
[1732810989306,0.004,95310.0,95309.0,0.1066452]
[1732810989520,0.004,95310.0,95309.0,0.0017242]
[1732810990160,0.104918,95312.0,95309.0,0.0017242]
[1732810990377,0.003,95310.0,95309.0,0.0017242]
[1732810990604,0.001,95310.0,95309.0,0.1196047]
[1732810990835,0.001,95310.0,95309.0,0.0017242]
[1732810991085,0.10592,95310.0,95309.0,0.0017242]
[1732810991538,0.18722,95310.0,95309.0,0.0027242]
[1732810991751,0.10692,95310.0,95309.0,0.0027242]
[1732810991969,0.10692,95310.0,95309.0,0.0017242]
[1732810991970,0.10492,95310.0,95309.0,0.0017242]
[1732810992234,0.12792,95310.0,95309.0,0.0017242]
[1732810992472,0.21008438,95310.0,95309.0,0.0037242]
[1732810992915,0.21008438,95310.0,95309.0,0.0017242]
[1732810993163,0.21008438,95310.0,95309.0,0.0027242]
[1732810993392,0.21008438,95310.0,95309.0,0.0037242]
[1732810993620,0.21008438,95310.0,95309.0,0.0027242]
[1732810993854,0.21008438,95310.0,95309.0,0.0017242]
[1732810994071,0.21508438,95310.0,95309.0,0.0017242]
[1732810994536,0.21008438,95310.0,95309.0,0.0017242]
[1732810994777,0.21508438,95310.0,95309.0,0.0017242]
[1732810994996,0.21008438,95310.0,95309.0,0.0017242]
[1732810995223,0.21308438,95310.0,95309.0,0.0017242]
[1732810995457,0.21808438,95310.0,95309.0,0.0017242]
[1732810995701,0.21322,95310.0,95309.0,0.0017242]
[1732810995917,0.21808438,95310.0,95309.0,0.0017242]
[1732810996824,0.21622,95310.0,95309.0,0.0017242]
[1732810999093,0.13592,95310.0,95309.0,0.0017242]
[1732810999316,0.11292,95310.0,95309.0,0.0017242]
[1732810999556,0.008,95310.0,95309.0,0.0017242]
[1732810999793,0.008,95310.0,95309.0,0.1066452]
[1732810999996,0.008,95310.0,95309.0,0.0017242]
[1732811000420,0.008,95310.0,95309.0,0.1066452]
[1732811000670,0.008,95310.0,95309.0,0.0017242]
[1732811001589,0.003,95310.0,95309.0,0.0017242]
[1732811001836,0.0008621,95312.0,95309.0,0.0017242]
[1732811002113,0.10492,95310.0,95309.0,0.0017242]
[1732811003216,0.1067811,95312.0,95309.0,0.0017242]
[1732811003423,0.0008621,95312.0,95309.0,0.0017242]
[1732811003649,0.0018621,95312.0,95309.0,0.0017242]
[1732811003883,0.1057811,95312.0,95309.0,0.0017242]
[1732811004982,0.1057811,95312.0,95309.0,0.0027242]
[1732811005184,0.1057811,95312.0,95309.0,0.0017242]
[1732811005411,0.0008621,95312.0,95309.0,0.0027242]
[1732811005633,0.0008621,95312.0,95311.0,0.104919]
[1732811005851,0.0008621,95312.0,95309.0,0.0017242]
[1732811006089,0.10492,95310.0,95309.0,0.0017242]
[1732811006314,0.10492,95310.0,95309.0,0.0027242]
[1732811006537,0.1057811,95312.0,95309.0,0.0027242]
[1732811006757,0.10492,95310.0,95309.0,0.0037242]
[1732811006970,0.18538438,95310.0,95309.0,0.0037242]
[1732811007439,0.18352,95310.0,95309.0,0.0037242]
[1732811007647,0.20752,95310.0,95309.0,0.0057242]
[1732811007856,0.20838438,95310.0,95309.0,0.0037242]
[1732811008355,0.20838438,95310.0,95309.0,0.0027242]
[1732811009633,0.0008621,95312.0,95309.0,0.0027242]
[1732811009869,0.0008621,95312.0,95311.0,0.104919]
[1732811010730,0.0008621,95312.0,95311.0,0.20776421]
[1732811010947,0.0008621,95312.0,95311.0,0.30184005]
[1732811011169,0.0008621,95312.0,95311.0,0.20776421]
[1732811011395,0.0008621,95312.0,95311.0,0.34887797]
[1732811011609,0.0008621,95312.0,95311.0,0.20776421]
[1732811012726,0.0008621,95312.0,95311.0,0.21276421]
[1732811012942,0.0008621,95312.0,95311.0,0.35387797]
[1732811013158,0.0008621,95312.0,95311.0,0.21276421]
[1732811014041,0.0018621,95312.0,95311.0,0.21476421]
[1732811016022,0.0018621,95312.0,95311.0,0.35594488]
[1732811016238,0.0018621,95312.0,95311.0,0.21476421]
[1732811016449,0.0018621,95312.0,95311.0,0.35594993]
[1732811018788,0.0018621,95312.0,95311.0,0.36871631]
[1732811019651,0.0018621,95312.0,95311.0,0.36870029]
[1732811019876,0.0018621,95312.0,95311.0,0.16093608]
[1732811020116,0.1067801,95312.0,95311.0,0.01976638]
[1732811020350,0.0018621,95312.0,95311.0,0.01976638]
[1732811021005,0.1067801,95312.0,95311.0,0.01476638]
[1732811021227,0.1067801,95312.0,95311.0,0.01376638]
[1732811021228,0.1057801,95312.0,95311.0,0.01376638]
[1732811021464,0.0008621,95312.0,95311.0,0.11868538]
[1732811021697,0.0008621,95312.0,95311.0,0.01576638]
[1732811021698,0.0018621,95312.0,95311.0,0.01576638]
[1732811021911,0.0018621,95312.0,95311.0,0.01476638]
[1732811022139,0.0018621,95312.0,95311.0,0.01776638]
[1732811023405,0.1067801,95312.0,95311.0,0.01776638]
[1732811024909,0.0018621,95312.0,95311.0,0.01776638]
[1732811025580,0.1067801,95312.0,95311.0,0.01776638]
[1732811027395,0.1067801,95312.0,95311.0,0.01948998]
[1732811028516,0.10864448,95312.0,95311.0,0.0067236]
[1732811029118,0.10864448,95312.0,95311.0,0.0037236]
[1732811029344,0.13164448,95312.0,95311.0,0.0037236]
[1732811030019,0.13064448,95312.0,95311.0,0.0017236]
[1732811030477,0.36368969,95312.0,95311.0,0.0017236]
[1732811030688,0.36182531,95312.0,95311.0,0.0017236]
[1732811031350,0.36182531,95312.0,95311.0,0.0047236]
[1732811031778,0.36182531,95312.0,95311.0,0.0017236]
[1732811032205,0.37082531,95312.0,95311.0,0.0017236]
[1732811036484,0.64285584,95312.0,95311.0,0.0017236]
[1732811036907,0.53082531,95312.0,95311.0,0.0017236]
[1732811037148,0.54082531,95312.0,95311.0,0.0017236]
[1732811037585,0.53782531,95312.0,95311.0,0.0017236]
[1732811037814,0.53882531,95312.0,95311.0,0.0027236]
[1732811038027,0.53882531,95312.0,95311.0,6e-07]
[1732811038028,0.54782531,95312.0,95311.0,6e-07]
[1732811038229,0.65065677,95312.0,95311.0,6e-07]
[1732811039537,0.65065677,95312.0,95311.0,0.0017242]
[1732811040366,0.54782531,95312.0,95311.0,0.0017242]
[1732811042409,0.53782531,95312.0,95311.0,0.0017242]
[1732811042637,0.54782531,95312.0,95311.0,0.0017242]
[1732811046150,0.54782531,95312.0,95311.0,2e-07]
[1732811047752,0.53782531,95312.0,95311.0,2e-07]
[1732811047971,0.54782531,95312.0,95311.0,2e-07]
[1732811049072,0.52782531,95312.0,95311.0,2e-07]
[1732811049574,0.25492,95310.0,95309.0,0.00163993]
[1732811049799,0.38076521,95310.0,95309.0,0.00163993]
[1732811050018,0.40076521,95310.0,95309.0,0.00163993]
[1732811050243,0.39076521,95310.0,95309.0,0.00163993]
[1732811050458,0.40076521,95310.0,95309.0,0.00163993]
[1732811050943,0.39676521,95310.0,95309.0,0.00263993]
[1732811051149,0.40676521,95310.0,95309.0,0.00263993]
[1732811051577,0.41576521,95310.0,95309.0,0.00263993]
[1732811052239,0.49666521,95310.0,95309.0,0.00263993]
[1732811052678,0.59314494,95310.0,95309.0,0.00263993]
[1732811052897,0.54166521,95310.0,95309.0,9.3e-07]
[1732811053193,0.54166521,95310.0,95298.0,0.001722]
[1732811053194,0.413832,95299.0,95298.0,9.3e-07]
[1732811053437,0.52667721,95299.0,95298.0,9.3e-07]
[1732811054339,0.52667721,95299.0,95293.0,0.001722]
[1732811054340,0.147938,95294.0,95293.0,9.3e-07]
[1732811054622,0.147938,95294.0,95242.0,0.0017236]
[1732811054623,0.104994,95243.0,95242.0,0.0017236]
[1732811055115,0.10685838,95243.0,95242.0,0.0017236]
[1732811057379,0.12985838,95243.0,95242.0,0.0017236]
[1732811060413,0.104994,95243.0,95242.0,0.0017236]
[1732811060640,0.10685838,95243.0,95242.0,0.0017236]
[1732811066083,0.10685838,95243.0,95242.0,0.0027236]
[1732811066529,0.10685838,95243.0,95242.0,0.0017236]
[1732811066978,0.10685838,95243.0,95242.0,0.0037236]
[1732811069013,0.10685838,95243.0,95242.0,0.0017236]
[1732811070082,0.41528553,95243.0,95242.0,0.0017236]
[1732811070085,0.51260359,95243.0,95242.0,0.0037236]
[1732811070293,0.52335366,95243.0,95242.0,0.0037236]
[1732811071597,0.53235366,95243.0,95242.0,0.0037236]
[1732811071827,0.47635366,95243.0,95242.0,0.0037236]
[1732811072254,0.47635366,95243.0,95242.0,0.0017236]
[1732811072464,0.48535366,95243.0,95242.0,0.0017236]
[1732811072667,0.49135366,95243.0,95242.0,0.0027236]
[1732811072888,0.31973921,95243.0,95242.0,0.0027236]
[1732811073109,0.23083921,95243.0,95242.0,0.0017236]
[1732811073528,0.23383921,95243.0,95242.0,0.0017236]
[1732811074228,0.127994,95243.0,95242.0,0.0017236]
[1732811074461,0.13685838,95243.0,95242.0,0.0017236]
[1732811074659,0.12985838,95243.0,95242.0,0.0017236]
[1732811075104,0.13485838,95243.0,95242.0,0.0017236]
[1732811075533,0.13785838,95243.0,95242.0,0.0017236]
[1732811075975,0.12985838,95243.0,95242.0,0.0017236]
[1732811076184,0.13385838,95243.0,95242.0,0.0017236]
[1732811076404,0.13585838,95243.0,95242.0,0.0017236]
[1732811080181,0.23870359,95243.0,95242.0,0.0017236]
[1732811080404,0.23483921,95243.0,95242.0,0.0017236]
[1732811080810,0.131994,95243.0,95242.0,0.0017236]
[1732811081016,0.12985838,95243.0,95242.0,0.0017236]
[1732811081889,0.13385838,95243.0,95242.0,0.0017236]
[1732811082106,0.13085838,95243.0,95242.0,0.0017236]
[1732811082334,0.12985838,95243.0,95242.0,0.0017236]
[1732811082564,0.13385838,95243.0,95242.0,0.0017236]
[1732811082798,0.13585838,95243.0,95242.0,0.0017236]
[1732811083273,0.006,95243.0,95242.0,0.1067186]
[1732811083509,0.004,95243.0,95242.0,0.1067186]
[1732811083726,0.004,95243.0,95242.0,0.11328601]
[1732811083947,0.007,95243.0,95242.0,0.11328601]
[1732811084151,0.003,95243.0,95242.0,0.11328601]
[1732811084594,0.005,95243.0,95242.0,0.11328601]
[1732811084812,0.003,95243.0,95242.0,0.11328601]
[1732811085039,0.104989,95248.0,95242.0,0.11328601]
[1732811085040,0.104989,95248.0,95242.0,0.00829101]
[1732811085350,0.104986,95250.0,95244.0,0.104992]
[1732811085505,0.104986,95250.0,95245.0,0.11155841]
[1732811085734,0.104987,95250.0,95246.0,0.00656741]